bitfinex-derivatives/quotes_ETHF0:USTF0_20250520
["timestamp","ask_amount","ask_price","bid_price","bid_amount"]
[1747716411913,0.77961,2564.8,2564.7,3.2078]
[1747716412112,2.74,2564.8,2564.7,3.2078]
[1747716412313,4.3885,2564.8,2564.7,3.2078]
[1747716413120,14.1715,2564.8,2564.7,3.2078]
[1747716413317,4.3885,2564.8,2564.7,3.2078]
[1747716413823,1.9607,2564.8,2564.7,3.98743]
[1747716414215,1.49876041,2564.8,2564.7,3.98743]
[1747716415117,0.71966041,2564.8,2564.7,3.98743]
[1747716415720,3.14746041,2564.8,2564.7,3.2078]
[1747716416327,3.92706041,2564.8,2564.7,3.2078]
[1747716416524,3.14746041,2564.8,2564.7,3.2078]
[1747716416713,3.14776041,2564.8,2564.7,3.2078]
[1747716416919,8.14776041,2564.8,2564.7,3.2078]
[1747716417119,10.88776041,2564.8,2564.7,3.2078]
[1747716417320,5.88776041,2564.8,2564.7,3.2078]
[1747716419524,15.66676041,2564.8,2564.7,3.2078]
[1747716420022,14.88746041,2564.8,2564.7,3.2078]
[1747716420618,5.10846041,2564.8,2564.7,3.2078]
[1747716420819,14.88646041,2564.8,2564.7,3.2078]
[1747716422125,1.9607,2564.8,2564.7,3.2078]
[1747716422322,4.32886041,2564.8,2564.7,3.2078]
[1747716422626,5.10846041,2564.8,2564.7,3.2078]
[1747716422827,5.64516041,2564.8,2564.7,3.2078]
[1747716423015,6.42476041,2564.8,2564.7,3.2078]
[1747716423420,5.64546041,2564.8,2564.7,3.2078]
[1747716423820,15.42246041,2564.8,2564.7,3.2078]
[1747716424226,5.64546041,2564.8,2564.7,3.2078]
[1747716424419,1.1814,2564.8,2564.7,3.2078]
[1747716424625,1.1814,2564.8,2564.7,3.98743]
[1747716424820,1.26626477,2564.8,2564.7,3.2078]
[1747716425020,1.26626477,2564.8,2564.7,4.29055814]
[1747716425220,0.08486477,2564.8,2564.7,4.29055688]
[1747716425421,2.36816041,2565.0,2564.7,3.51092688]
[1747716425626,2.36816041,2565.3,2565.1,0.77949]
[1747716425828,2.36816041,2565.3,2565.2,1.3553]
[1747716426225,5.10816041,2565.3,2565.0,3.2078]
[1747716426425,3.14765041,2565.2,2565.0,3.2078]
[1747716426624,4.42745041,2565.2,2565.1,1.3553]
[1747716426925,0.77951,2565.1,2565.0,3.2078]
[1747716427126,4.42747041,2565.1,2565.0,3.5107569]
[1747716427423,7.16747041,2565.1,2565.0,3.2078]
[1747716427619,7.16747041,2565.1,2565.0,3.19807178]
[1747716427825,2.74,2565.1,2565.0,3.97761178]
[1747716428021,2.74,2565.1,2565.0,3.19807178]
[1747716428218,9.776,2565.5,2565.0,3.19807178]
[1747716428425,3.14770041,2565.1,2564.8,2.03569]
[1747716428629,2.36816041,2565.0,2564.8,2.03569]
[1747716428823,3.14770041,2565.0,2564.9,3.2078]
[1747716429029,0.77948,2565.2,2564.9,5.24346]
[1747716429230,2.74,2565.0,2564.9,5.24346]
[1747716430023,0.6322,2566.0,2564.9,5.24346]
[1747716430024,0.77934,2565.7,2565.3,0.77942]
[1747716430223,3.14759041,2565.4,2565.2,0.00584887]
[1747716430426,9.776,2565.6,2565.3,3.2078]
[1747716430626,0.77942,2565.4,2565.3,3.2078]
[1747716430824,2.36816041,2565.4,2565.3,3.2078]
[1747716431126,5.88758041,2565.4,2565.3,3.2078]
[1747716431331,6.54618041,2565.4,2565.3,3.2078]
[1747716431521,7.86498041,2565.4,2565.3,3.2078]
[1747716432332,2.74,2565.4,2565.3,3.2078]
[1747716432628,0.50164,2565.4,2565.3,3.98725]
[1747716433029,2.86980041,2565.4,2565.3,3.2078]
[1747716433229,3.64922041,2565.4,2565.3,3.2078]
[1747716433431,2.86980041,2565.4,2565.3,3.2078]
[1747716433733,3.64922041,2565.4,2565.3,3.2078]
[1747716434033,2.86980041,2565.4,2565.3,3.2078]
[1747716434333,0.50164,2565.4,2565.3,3.98725]
[1747716434532,0.50164,2565.4,2565.3,5.35805]
[1747716435527,1.05364,2565.7,2565.3,4.5786]
[1747716435728,2.36816041,2565.4,2565.3,1.3708]
[1747716436029,3.14758041,2565.4,2565.3,3.2078]
[1747716436233,2.74,2565.4,2565.3,3.2078]
[1747716436534,5.10816041,2565.4,2565.3,3.2078]
[1747716436735,5.88758041,2565.4,2565.3,3.2078]
[1747716437226,5.10816041,2565.4,2565.3,3.2078]
[1747716437428,5.10816041,2565.4,2565.3,4.5479]
[1747716437733,4.32906041,2565.4,2565.3,3.2078]
[1747716437934,4.32906041,2565.4,2565.3,3.98725]
[1747716438434,4.32906041,2565.4,2565.3,5.32735]
[1747716439035,4.32906041,2565.4,2565.3,4.5479]
[1747716439240,14.23806041,2565.4,2565.3,4.5479]
[1747716439438,1.9609,2565.4,2565.3,5.32735]
[1747716439937,1.9609,2565.4,2565.3,4.5479]
[1747716440138,1.26676477,2565.4,2565.3,5.32735]
[1747716441034,1.26676477,2565.4,2565.3,3.2078]
[1747716441235,3.63492518,2565.4,2565.3,3.2078]
[1747716441430,4.96362518,2565.4,2565.3,3.2078]
[1747716441632,1.26676477,2565.4,2565.3,10.33335]
[1747716441829,1.26676477,2565.4,2565.3,6.65815]
[1747716442033,3.63492518,2565.4,2565.3,5.8787]
[1747716442238,3.63492518,2565.4,2565.3,4.5539]
[1747716442837,4.90222518,2565.4,2565.3,4.5539]
[1747716443037,4.90222518,2565.4,2565.3,3.2078]
[1747716443636,5.68164518,2565.4,2565.3,3.2078]
[1747716444034,0.7796,2564.8,2564.7,0.30312688]
[1747716444231,5.10816041,2564.8,2564.7,0.30312688]
[1747716444437,0.08486477,2565.4,2565.3,0.77945]
[1747716444733,2.0466,2565.8,2565.7,0.69423523]
[1747716445242,12.15476041,2565.8,2565.7,0.69423523]
[1747716445741,4.41386041,2565.8,2565.5,0.00584887]
[1747716446035,1.67386041,2565.7,2565.6,0.77935]
[1747716446241,1.67386041,2565.7,2565.5,0.00584887]
[1747716446242,2.95136041,2565.7,2565.5,0.00584887]
[1747716446438,5.66102041,2565.6,2565.5,0.00584887]
[1747716446640,2.74,2565.8,2565.5,0.00584887]
[1747716446834,1.67386041,2565.7,2565.5,0.00584887]
[1747716447036,0.00581041,2566.0,2565.5,8.21364887]
[1747716447237,3.2078,2566.8,2566.1,1.55239959]
[1747716447238,2.74,2566.2,2566.1,1.55239959]
[1747716447436,2.74,2566.2,2566.1,4.76019959]
[1747716447637,2.74,2566.2,2566.1,3.98098959]
[1747716447841,4.41386041,2566.2,2566.1,0.77318959]
[1747716448340,3.64066041,2566.2,2566.0,3.2078]
[1747716448541,1.67386041,2566.1,2566.0,3.98702]
[1747716448741,3.02176041,2566.1,2566.0,3.98702]
[1747716448935,1.3479,2566.1,2566.0,3.98702]
[1747716449335,4.0879,2566.1,2566.0,3.98702]
[1747716449542,2.74,2566.1,2566.0,3.98702]
[1747716451245,2.74,2566.1,2566.0,5.32072]
[1747716451246,1.9612,2566.1,2566.0,5.32072]
[1747716451439,0.7791,2566.5,2566.0,4.5415]
[1747716451637,1.67386041,2566.3,2566.0,4.5415]
[1747716451945,1.67386041,2566.1,2566.0,1.3337]
[1747716452145,4.41386041,2566.1,2566.0,1.3337]
[1747716452345,2.74,2566.1,2566.0,1.3337]
[1747716452738,4.41386041,2566.1,2566.0,1.3337]
[1747716452936,2.74,2566.1,2566.0,4.5415]
[1747716453447,2.74,2566.1,2566.0,1.3337]
[1747716453645,4.41386041,2566.1,2566.0,1.3337]
[1747716454039,2.74,2566.1,2566.0,4.5415]
[1747716454345,2.82486477,2566.1,2566.0,1.3337]
[1747716454645,2.82486477,2566.1,2566.0,4.5415]
[1747716454848,2.82486477,2566.1,2566.0,5.32074]
[1747716455145,3.2078,2567.4,2566.0,9.5415]
[1747716455347,3.2078,2567.4,2566.8,3.2078]
[1747716455645,1.67386041,2566.9,2566.8,3.21364887]
[1747716456645,0.89526041,2566.9,2566.8,3.21364887]
[1747716456843,0.89526041,2566.9,2566.8,0.00584887]
[1747716457247,2.25096041,2566.9,2566.8,0.00584887]
[1747716458642,3.02992041,2566.9,2566.8,0.00584887]
[1747716459241,17.15596041,2566.9,2566.2,3.98698]
[1747716459540,0.89526041,2566.4,2566.2,3.2078]
[1747716459737,2.17806041,2566.3,2565.8,6.66898]
[1747716460042,0.89526041,2565.9,2565.8,3.59662374]
[1747716460340,0.00584887,2566.1,2565.8,3.2078]
[1747716460541,0.77933,2565.7,2565.6,0.00584887]
[1747716460746,1.67459041,2565.7,2565.6,0.00584887]
[1747716461945,0.89549041,2565.7,2565.6,0.00584887]
[1747716462147,0.11616041,2565.7,2565.6,0.00584887]
[1747716462349,0.89549041,2565.7,2565.6,0.00584887]
[1747716462840,0.77933,2565.7,2565.6,0.00584887]
[1747716463048,0.89549041,2565.7,2565.6,0.00584887]
[1747716464449,2.16419041,2565.7,2565.6,0.00584887]
[1747716466356,7.16419041,2565.7,2565.6,8.87e-06]
[1747716466552,0.11616041,2565.2,2564.7,1.67582688]
[1747716466749,0.77957,2564.9,2564.7,0.30312688]
[1747716466949,1.2912,2564.8,2564.7,0.30312688]
[1747716467455,1.29171,2564.8,2564.7,0.30312688]
[1747716467653,4.61567041,2564.8,2564.7,0.30312688]
[1747716470154,1.3329,2565.6,2564.7,5.30312688]
[1747716470457,0.89565041,2565.2,2564.8,0.77959]
[1747716470652,0.11616041,2565.2,2564.8,1.2738]
[1747716470956,1.2537,2565.2,2565.1,0.7793]
[1747716471552,0.77957,2564.9,2564.8,1.2738]
[1747716471761,0.11616041,2564.9,2564.8,1.2738]
[1747716472256,0.63919859,2566.2,2564.8,10.1249]
[1747716472451,0.11616041,2565.9,2565.7,3.98711]
[1747716472647,0.78507887,2566.1,2565.8,2.579]
[1747716473059,0.11616041,2565.9,2565.8,2.579]
[1747716473254,0.11616041,2565.9,2565.8,3.3583]
[1747716473449,0.00584887,2566.1,2565.8,3.3583]
[1747716473759,0.11616041,2566.1,2565.9,0.77927]
[1747716474057,4.50079266,2566.3,2566.0,1.3381]
[1747716474254,0.11616041,2566.1,2566.0,1.3381]
[1747716474659,4.50664153,2566.3,2566.0,1.3381]
[1747716474954,0.11616041,2566.2,2566.0,4.5459]
[1747716475151,0.65353407,2566.3,2566.2,0.77918]
[1747716475352,0.65353407,2566.3,2566.1,0.77919]
[1747716475552,0.65353407,2566.3,2566.2,1.3381]
[1747716475954,0.76969448,2566.3,2566.2,1.3381]
[1747716476661,2.10599448,2566.3,2566.2,1.3381]
[1747716477050,1.32719448,2566.3,2566.2,1.3381]
[1747716479856,2.10634448,2566.3,2566.0,3.2078]
[1747716480159,2.10635448,2566.3,2566.0,3.2078]
[1747716480660,2.10635448,2566.3,2566.1,1.3225]
[1747716480963,0.77918,2566.2,2566.1,1.3225]
[1747716481260,1.3722,2566.2,2566.1,2.10171]
[1747716484665,1.3722,2566.2,2566.1,1.3225]
[1747716486266,2.15138,2566.2,2566.1,1.3225]
[1747716486466,1.3722,2566.2,2566.1,1.3225]
[1747716486763,2.15138,2566.2,2566.1,1.3225]
[1747716486964,0.5934,2566.2,2566.1,1.3225]
[1747716488266,0.77915,2566.3,2566.1,1.3225]
[1747716488661,0.77915,2566.3,2566.1,2.10171]
[1747716488865,0.77915,2566.3,2566.2,1.296]
[1747716490267,0.77915,2566.3,2565.8,1.31104887]
[1747716490268,0.77918,2566.2,2565.8,0.00584887]
[1747716490469,0.77918,2566.2,2566.0,0.77923]
[1747716490969,3.2078,2566.3,2566.1,1.296]
[1747716491165,0.7792,2566.2,2566.1,1.296]
[1747716491376,0.77916,2566.3,2565.8,0.00584887]
[1747716491686,0.77916,2566.3,2565.8,1.32204887]
[1747716491864,0.77916,2566.3,2566.0,0.77922]
[1747716492057,0.77916,2566.3,2566.1,1.3162]
[1747716492365,0.77918,2566.2,2566.1,1.3162]
[1747716493471,0.77917,2566.3,2566.1,1.3162]
[1747716493667,0.77918,2566.2,2566.1,1.3162]
[1747716494271,0.77916,2566.3,2566.1,1.3162]
[1747716494669,0.77918,2566.2,2566.1,1.3162]
[1747716495567,0.77926,2566.0,2565.8,0.78514887]
[1747716495974,0.77926,2566.0,2565.9,1.2973]
[1747716496175,0.77927,2565.9,2565.8,0.00584887]
[1747716496372,13.38707,2565.9,2565.8,0.00584887]
[1747716496571,0.77954,2565.1,2564.9,1.2973]
[1747716496770,0.77951,2565.1,2564.9,1.2973]
[1747716496970,3.2078,2565.3,2564.9,1.2973]
[1747716497166,0.77953,2565.1,2564.7,3.51092688]
[1747716497371,0.77969,2564.5,2564.0,2.5746665]
[1747716497575,13.38749,2564.5,2564.2,0.00584887]
[1747716497777,18.38749,2564.5,2564.2,0.00584887]
[1747716498076,17.6078,2564.5,2564.2,0.00584887]
[1747716498276,17.6078,2564.5,2563.5,3.21345104]
[1747716498277,1.9494,2564.3,2563.5,3.21345104]
[1747716498485,0.77997,2563.6,2563.5,3.21345104]
[1747716498873,2.05447,2563.6,2563.5,3.21345104]
[1747716499074,1.2745,2563.6,2563.5,3.21345104]
[1747716499677,0.4949,2563.6,2563.5,3.21345104]
[1747716500283,1.27487,2563.6,2563.5,3.21345104]
[1747716500584,3.2078,2563.7,2563.5,3.21345104]
[1747716500773,3.2078,2563.7,2563.6,2.10537]
[1747716500980,9.402,2564.2,2563.8,0.77988]
[1747716501278,2.08605,2564.4,2563.9,2.10526]
[1747716501478,3.2078,2564.3,2563.9,1.3254]
[1747716501873,3.2078,2564.3,2564.2,0.7796]
[1747716502071,3.98756,2564.3,2564.2,0.7796]
[1747716502276,3.2078,2564.3,2563.9,1.3254]
[1747716502474,0.77985,2564.0,2563.9,1.3254]
[1747716502688,0.77986,2564.0,2563.5,12.6098]
[1747716502881,1.276,2564.2,2563.6,2.10534]
[1747716503180,0.77985,2564.0,2563.6,2.10534]
[1747716503377,0.77985,2564.0,2563.7,1.3281]
[1747716504186,0.77982,2564.1,2563.7,2.10803]
[1747716504485,1.276,2564.2,2563.9,0.77987]
[1747716504682,3.2078,2564.3,2564.0,1.3281]
[1747716505185,3.2078,2564.3,2564.0,2.10793]
[1747716505485,3.2078,2564.3,2564.0,1.3281]
[1747716506087,0.77982,2564.1,2564.0,1.3281]
[1747716506288,1.2459,2564.2,2564.0,1.3281]
[1747716506484,0.77982,2564.1,2564.0,1.3281]
[1747716507185,1.2459,2564.2,2564.0,1.3281]
[1747716507386,0.77985,2564.0,2563.6,0.77995]
[1747716507593,1.3694,2563.9,2563.6,2.10975]
[1747716507796,1.3694,2563.9,2563.7,1.3298]
[1747716507991,3.2078,2564.0,2563.7,1.3298]
[1747716508288,3.2078,2564.0,2563.8,0.77991]
[1747716508591,3.2078,2564.0,2563.9,1.3298]
[1747716508788,3.2078,2564.0,2563.9,2.10968]
[1747716509490,3.98757,2564.3,2563.9,2.10968]
[1747716509693,3.2078,2564.3,2564.1,0.77981]
[1747716509892,3.2078,2564.3,2564.2,1.295]
[1747716510084,0.6804,2564.4,2564.2,1.295]
[1747716510387,3.2078,2564.6,2564.5,0.77969]
[1747716510781,3.2078,2564.6,2564.4,0.77971]
[1747716511086,3.2078,2564.6,2564.5,2.07469]
[1747716511390,2.4284,2564.6,2564.5,2.07469]
[1747716512388,1.9183,2564.9,2564.6,0.77966]
[1747716512691,3.06314887,2565.1,2564.8,0.7796]
[1747716512894,3.84266887,2565.1,2564.9,1.3361]
[1747716513087,2.08404,2565.0,2564.9,1.3361]
[1747716513386,1.3045,2565.0,2564.9,1.3361]
[1747716514490,1.3045,2565.0,2564.8,0.7796]
[1747716514491,2.08404,2565.0,2564.7,0.78546887]
[1747716514682,2.08404,2565.0,2564.8,0.77959]
[1747716514683,1.3045,2565.0,2564.8,0.77959]
[1747716514887,2.08405,2565.0,2564.8,0.77959]
[1747716515093,1.3045,2565.0,2564.8,0.77959]
[1747716515592,0.77957,2564.9,2564.7,0.78546887]
[1747716515891,1.3689,2564.8,2564.7,0.78546887]
[1747716516394,0.6821,2565.0,2564.9,0.77957]
[1747716516595,2.051,2565.0,2564.9,0.77957]
[1747716516784,2.83054,2565.0,2564.8,2.03559]
[1747716517296,0.77954,2565.0,2564.8,2.03559]
[1747716518195,2.14844,2565.0,2564.8,2.03559]
[1747716518698,0.77957,2564.9,2564.8,1.256]
[1747716518895,2.12157,2564.9,2564.8,1.256]
[1747716519091,0.7796,2564.8,2564.7,0.00584887]
[1747716519297,5.9545,2564.8,2564.7,0.00584887]
[1747716519998,5.1749,2564.8,2564.7,0.00584887]
[1747716520194,3.2078,2564.8,2564.7,0.78547887]
[1747716521402,0.00584887,2565.2,2565.1,0.77951]
[1747716521707,0.00584887,2565.2,2565.1,3.98731]
[1747716522289,2.0207,2566.0,2565.7,0.77931]
[1747716522492,2.0207,2566.0,2565.8,1.2667]
[1747716523803,1.2413,2566.0,2565.8,1.2667]
[1747716525101,1.2413,2566.0,2565.8,2.046]
[1747716526004,1.2413,2566.0,2565.8,1.2667]
[1747716526207,13.2656,2566.4,2565.8,1.2667]
[1747716526405,3.2078,2566.4,2565.8,1.2667]
[1747716526606,3.98694,2566.4,2566.0,0.77922]
[1747716526806,3.98694,2566.4,2566.1,1.2953]
[1747716527207,1.3281,2566.3,2566.1,1.2953]
[1747716527409,2.10725,2566.3,2566.2,0.779]
[1747716527610,0.6335,2566.3,2566.2,0.779]
[1747716527905,0.6335,2566.3,2566.2,1.55818]
[1747716528103,5.25024,2566.7,2566.4,0.77911]
[1747716528299,5.88374,2566.7,2566.5,1.2548]
[1747716528505,5.1047,2566.7,2566.5,1.2548]
[1747716528808,5.1047,2566.7,2566.5,2.03388]
[1747716529008,5.1047,2566.7,2566.6,0.779]
[1747716530099,5.88373,2566.7,2566.6,0.779]
[1747716530301,0.6335,2566.7,2566.6,0.779]
[1747716530500,0.77898,2566.9,2566.6,0.77906]
[1747716530701,0.779,2566.8,2566.7,1.2804]
[1747716531813,0.77909,2566.5,2566.4,3.2078]
[1747716532014,1.3436,2566.7,2566.4,3.2078]
[1747716532312,2.12264,2566.7,2566.4,3.98691]
[1747716532611,2.12264,2566.7,2566.5,1.2804]
[1747716532811,2.12263,2566.7,2566.5,1.2804]
[1747716533311,3.2078,2566.9,2566.5,1.2804]
[1747716533512,2.1226,2566.8,2566.5,1.2804]
[1747716533811,2.7522,2566.8,2566.5,1.2804]
[1747716534112,2.75221,2566.8,2566.5,2.05948]
[1747716534707,2.75221,2566.8,2566.5,1.2804]
[1747716535411,1.97351,2566.8,2566.5,1.2804]
[1747716536111,0.77903,2566.7,2566.5,1.2804]
[1747716536308,0.6296,2566.8,2566.5,1.2804]
[1747716536512,3.2078,2566.9,2566.7,0.77903]
[1747716536722,3.2078,2566.9,2566.8,1.267]
[1747716536916,3.2078,2567.2,2567.1,0.77889]
[1747716537127,11.0,2567.5,2567.0,3.2078]
[1747716537325,11.0,2567.5,2567.4,0.77881]
[1747716537523,4.13504405,2567.5,2567.4,9.97581]
[1747716537825,4.13504405,2567.5,2567.4,15.28935285]
[1747716538019,1.27431405,2567.5,2567.4,17.18955285]
[1747716538217,8.30572224,2569.0,2568.4,3.2078]
[1747716538419,5.407188,2569.0,2568.9,3.98616]
[1747716538625,4.88132677,2569.0,2568.9,13.18316]
[1747716538924,4.88132677,2569.0,2568.9,12.4048]
[1747716539428,4.10292677,2569.0,2568.9,12.4048]
[1747716540226,2.15131,2569.4,2568.9,12.4048]
[1747716541222,1.3731,2569.4,2568.9,12.4048]
[1747716541420,6.56264451,2569.2,2568.9,3.2078]
[1747716541621,1.2429,2569.1,2568.9,3.2078]
[1747716542030,5.41781147,2569.1,2568.9,3.2078]
[1747716542726,5.41821147,2569.1,2568.9,3.2078]
[1747716542932,5.465,2569.1,2568.2,3.2078]
[1747716543226,0.7785,2568.5,2568.2,3.2078]
[1747716543432,0.7198,2569.0,2568.2,3.2078]
[1747716543619,0.77854,2568.3,2568.2,3.2078]
[1747716543823,0.77854,2568.3,2567.9,9.192]
[1747716543824,0.77863,2568.0,2567.9,3.2078]
[1747716544326,4.9476926,2568.0,2567.9,3.2078]
[1747716544722,4.1690626,2568.0,2567.9,3.2078]
[1747716545123,4.9476926,2568.0,2567.9,3.2078]
[1747716545530,0.00584887,2568.2,2567.9,3.2078]
[1747716545719,4.17491147,2568.2,2567.9,3.2078]
[1747716545925,1.2687,2568.1,2567.9,3.2078]
[1747716546232,0.4903,2568.1,2567.9,3.2078]
[1747716546429,0.77863,2568.0,2567.9,3.2078]
[1747716546825,4.9476926,2568.0,2567.9,3.2078]
[1747716547124,4.1690626,2568.0,2567.9,3.2078]
[1747716547921,4.9476926,2568.0,2567.9,3.2078]
[1747716549734,4.1690626,2568.0,2567.9,3.2078]
[1747716550138,1.2607,2568.1,2567.9,3.2078]
[1747716550328,5.4300826,2568.1,2567.9,3.2078]
[1747716550529,5.4300926,2568.1,2567.9,3.2078]
[1747716551330,0.77863,2568.0,2567.9,3.2078]
[1747716551536,2.03933,2568.0,2567.9,3.2078]
[1747716551728,5.4300926,2568.0,2567.9,3.2078]
[1747716552137,4.6514626,2568.0,2567.9,3.2078]
[1747716552634,5.4300926,2568.0,2567.9,3.2078]
[1747716553230,4.6514626,2568.0,2567.9,3.2078]
[1747716553430,5.4300926,2568.0,2567.9,3.2078]
[1747716554040,4.6514626,2568.0,2567.9,3.2078]
[1747716554435,3.3907626,2568.0,2567.9,3.98646]
[1747716554738,4.1693926,2568.0,2567.9,3.2078]
[1747716555038,5.4234926,2568.0,2567.9,3.2078]
[1747716555440,4.6451926,2568.0,2567.9,3.2078]
[1747716556741,4.6451926,2568.0,2567.4,1.06921627]
[1747716556742,1.94675,2567.8,2567.4,1.06921627]
[1747716557040,0.7099,2567.7,2567.6,0.77875]
[1747716557942,0.7787,2567.8,2567.6,0.77875]
[1747716557943,0.7784,2568.8,2568.3,0.77852]
[1747716558139,3.2078,2568.9,2568.3,3.2078]
[1747716558441,0.77834,2569.0,2568.5,0.77846]
[1747716558641,1.2843,2568.9,2568.5,0.77846]
[1747716558842,1.2843,2568.9,2568.6,0.77844]
[1747716559038,0.5062,2568.9,2568.6,0.77844]
[1747716559238,0.5062,2568.9,2568.7,1.3138]
[1747716559445,0.5062,2568.9,2568.7,2.09219]
[1747716559742,0.5062,2568.9,2568.7,1.3138]
[1747716559944,0.5062,2568.9,2568.7,2.09222]
[1747716560438,3.21364887,2569.0,2568.9,0.77836]
[1747716560644,0.00584887,2569.0,2568.9,0.77836]
[1747716561143,3.2078,2569.3,2569.2,0.10875113]
[1747716561839,3.2078,2570.3,2569.2,8.31655113]
[1747716562037,3.2078,2570.3,2569.5,3.2078]
[1747716562244,0.7137,2570.6,2569.5,3.2078]
[1747716562245,4.4961,2570.2,2569.6,1.2939]
[1747716562441,5.27408,2570.2,2569.8,0.77808]
[1747716562737,0.778,2570.1,2569.9,0.1087]
[1747716562941,0.77803,2570.0,2569.9,0.1087]
[1747716563146,2.06633,2570.0,2569.9,0.1087]
[1747716563533,1.2883,2570.0,2569.9,0.1087]
[1747716563736,2.06633,2570.0,2569.9,0.1087]
[1747716563944,1.2883,2570.0,2569.9,0.1087]
[1747716564145,3.2078,2570.2,2569.9,0.1087]
[1747716564338,3.2078,2570.2,2570.0,1.3687]
[1747716564538,3.98579,2570.2,2570.0,1.3687]
[1747716564847,1.3,2570.1,2570.0,1.3687]
[1747716565144,1.1913,2570.1,2570.0,1.3687]
[1747716565335,1.9693,2570.1,2570.0,1.3687]
[1747716565541,1.1913,2570.1,2570.0,1.3687]
[1747716566649,3.2078,2570.2,2570.0,2.14672]
[1747716566945,3.2078,2570.2,2570.1,0.778]
[1747716567642,3.2078,2570.2,2570.0,1.3687]
[1747716567947,3.98578,2570.2,2570.0,1.3687]
[1747716568149,3.98577,2570.2,2570.0,1.3687]
[1747716568449,3.2078,2570.2,2570.0,1.3687]
[1747716568844,8.2078,2570.2,2569.5,3.2078]
[1747716569049,0.77814,2569.7,2569.6,1.3094]
[1747716569447,1.9164,2570.1,2569.6,1.3094]
[1747716569640,1.9164,2570.1,2569.6,2.08754]
[1747716569845,0.77809,2569.8,2569.7,1.3094]
[1747716572251,0.77807,2569.9,2569.7,1.3094]
[1747716572948,0.77809,2569.8,2569.7,1.3094]
[1747716574044,0.77815,2569.6,2569.5,3.2078]
[1747716574244,2.0225,2569.7,2569.2,3.2078]
[1747716574642,0.77819,2569.5,2569.3,1.3571]
[1747716574847,0.7782,2569.5,2569.3,1.3571]
[1747716575251,0.7782,2569.5,2569.3,2.13534]
[1747716575452,0.77821,2569.4,2569.3,1.3571]
[1747716575652,3.2078,2569.6,2569.3,1.3571]
[1747716575853,0.77821,2569.4,2569.3,1.3571]
[1747716576247,0.77827,2569.2,2569.0,0.77832]
[1747716576552,0.77827,2569.2,2569.1,1.3155]
[1747716576755,3.2078,2569.3,2568.7,0.00584887]
[1747716576950,0.77837,2568.9,2568.8,1.3155]
[1747716577349,1.2585,2569.1,2568.8,1.3155]
[1747716577550,0.77839,2568.8,2568.7,0.00584887]
[1747716577751,0.77854,2568.3,2568.2,1.3155]
[1747716578153,3.2078,2568.3,2567.6,3.2078]
[1747716578352,1.2585,2568.2,2567.9,1.3155]
[1747716578552,0.77863,2568.0,2567.9,1.3155]
[1747716578754,3.98643,2568.0,2567.9,1.3155]
[1747716578955,0.00581017,2568.2,2568.1,0.7786]
[1747716579154,0.00581017,2568.2,2568.0,0.77863]
[1747716579354,0.00581017,2568.2,2568.1,1.3021]
[1747716579550,0.00581017,2568.2,2568.1,2.0807]
[1747716585762,0.00581017,2568.2,2568.1,7.0807]
[1747716587464,0.00581017,2568.2,2568.1,2.0807]
[1747716588863,12.3298,2570.0,2568.3,1.94632]
[1747716589062,1.3337,2569.8,2569.1,3.2078]
[1747716589266,0.77824,2569.3,2569.2,1.3417]
[1747716589463,3.98602,2569.4,2569.2,1.3417]
[1747716589659,3.2078,2569.4,2569.2,1.3417]
[1747716589858,0.77824,2569.3,2569.2,1.3417]
[1747716590059,2.85834,2569.3,2569.2,1.3417]
[1747716590261,7.0801,2569.3,2569.0,0.00583726]
[1747716590461,0.77828,2569.2,2569.0,0.00583726]
[1747716590657,3.9861,2569.1,2569.0,0.00583726]
[1747716591264,3.2078,2569.1,2569.0,0.00583726]
[1747716591455,2.11199,2569.2,2569.0,2.12585726]
[1747716591962,2.11199,2569.2,2569.0,1.34753726]
[1747716592266,1.3337,2569.2,2569.0,2.12585726]
[1747716592760,1.3337,2569.2,2569.0,1.34753726]
[1747716593061,0.7783,2569.1,2569.0,0.00583726]
[1747716593261,2.11199,2569.2,2569.0,0.00583726]
[1747716593460,0.7783,2569.1,2569.0,1.24553726]
[1747716593867,0.7464,2569.3,2569.0,1.24553726]
[1747716594167,0.7464,2569.3,2569.2,3.2078]
[1747716594366,1.52464,2569.3,2569.2,3.2078]
[1747716594567,0.7783,2569.1,2569.0,1.24553726]
[1747716596866,0.7783,2569.1,2569.0,0.00583726]
[1747716597170,3.9861,2569.1,2569.0,0.00583726]
[1747716599670,0.7783,2569.1,2569.0,0.00583726]
[1747716600172,3.9861,2569.1,2569.0,0.00583726]
[1747716602068,3.2078,2569.1,2569.0,0.00583726]
[1747716602278,3.9861,2569.1,2569.0,0.00583726]
[1747716610283,5.3267,2569.1,2569.0,0.00583726]
[1747716612087,4.5487,2569.1,2569.0,0.00583726]
[1747716615382,3.7706,2569.1,2569.0,0.00583726]
[1747716616892,3.7706,2569.1,2569.0,0.78393726]
[1747716617189,0.7785,2568.5,2567.8,3.2078]
[1747716617390,0.7785,2568.5,2568.2,0.77855]
[1747716617786,0.7785,2568.5,2568.3,1.2863]
[1747716617988,3.21363726,2568.7,2568.3,1.2863]
[1747716618290,1.3169,2568.6,2568.3,1.2863]
[1747716618587,0.5387,2568.6,2568.3,1.2863]
[1747716618791,3.21363726,2568.7,2568.4,0.7785]
[1747716618990,0.77845,2568.6,2568.5,1.2863]
[1747716620182,0.77857,2568.2,2568.1,0.00583726]
[1747716621295,0.8213,2568.3,2568.1,0.00583726]
[1747716621486,0.77857,2568.2,2568.1,0.00583726]
[1747716621992,2.09297,2568.2,2568.1,0.00583726]
[1747716623093,0.77891,2567.1,2567.0,3.2078]
[1747716623287,3.2078,2567.7,2567.1,0.77889]
[1747716623488,0.77881,2567.5,2567.1,0.77889]
[1747716623687,3.2078,2567.7,2567.1,0.77889]
[1747716624083,2.4293,2567.7,2567.1,0.77889]